[Event "Titled Tuesday Blitz September 14 2021"]
[White "Zhigalko, Sergei"]
[Black "Vitiugov, Nikita"]
[WhiteFideId "13502956"]
[BlackFideId "4152956"]
[WhiteElo "2662"]
[BlackElo "2673"]
[Result "1-0"]
[Round "05"]
[TimeControl "180+1"]
[Date "2021.09.15"]
[WhiteClock "0:00:03"]
[BlackClock "0:00:02"]

1. e4 {[%clk 0:03:00]}  e6 {[%clk 0:02:45]} 2. d4 {[%clk 0:03:00]}  d5 {[%clk 0:02:46]} 3. e5 {[%clk 0:03:00]}  c5 {[%clk 0:02:44]} 4. c3 {[%clk 0:03:00]}  Nc6 {[%clk 0:02:44]} 5. Nf3 {[%clk 0:03:00]}  Bd7 {[%clk 0:02:44]} 6. Be2 {[%clk 0:03:00]}  Rc8 {[%clk 0:02:43]} 7. O-O {[%clk 0:03:00]}  h6 {[%clk 0:02:43]} 8. Na3 {[%clk 0:02:33]}  Nge7 {[%clk 0:02:29]} 9. dxc5 {[%clk 0:02:20]}  Ng6 {[%clk 0:02:28]} 10. b4 {[%clk 0:02:20]}  a6 {[%clk 0:02:15]} 11. Re1 {[%clk 0:02:15]}  Ngxe5 {[%clk 0:01:58]} 12. Nxe5 {[%clk 0:02:12]}  Nxe5 {[%clk 0:01:59]} 13. Bxa6 {[%clk 0:01:48]}  bxa6 {[%clk 0:01:59]} 14. Rxe5 {[%clk 0:01:47]}  Be7 {[%clk 0:02:00]} 15. Bf4 {[%clk 0:01:47]}  g5 {[%clk 0:01:13]} 16. Bg3 {[%clk 0:01:43]}  h5 {[%clk 0:01:13]} 17. Re3 {[%clk 0:01:41]}  h4 {[%clk 0:01:09]} 18. Qd4 {[%clk 0:01:20]}  Rh6 {[%clk 0:00:52]} 19. Bd6 {[%clk 0:01:04]}  Bxd6 {[%clk 0:00:43]} 20. cxd6 {[%clk 0:01:05]}  Qf6 {[%clk 0:00:25]} 21. Nc2 {[%clk 0:00:55]}  Qxd4 {[%clk 0:00:12]} 22. Nxd4 {[%clk 0:00:55]}  Kd8 {[%clk 0:00:08]} 23. a4 {[%clk 0:00:44]}  Rb8 {[%clk 0:00:06]} 24. h3 {[%clk 0:00:39]}  Rb6 {[%clk 0:00:04]} 25. Rf1 {[%clk 0:00:11]}  Rxd6 {[%clk 0:00:04]} 26. f4 {[%clk 0:00:11]}  f6 {[%clk 0:00:04]} 27. fxg5 {[%clk 0:00:11]}  fxg5 {[%clk 0:00:04]} 28. Re5 {[%clk 0:00:11]}  Rg6 {[%clk 0:00:04]} 29. Rf7 {[%clk 0:00:11]}  g4 {[%clk 0:00:03]} 30. Kf2 {[%clk 0:00:02]}  gxh3 {[%clk 0:00:02]} 31. gxh3 {[%clk 0:00:03]} 1-0


[Site "https://www.chess.com"]

[Event "Titled Tuesday Blitz September 14 2021"]
[White "Bortnyk, Olexandr"]
[Black "Alikhanov, Felix"]
[WhiteFideId "14120828"]
[BlackFideId "4157427"]
[WhiteElo "2723"]
[BlackElo "2425"]
[Result "1-0"]
[Round "06"]
[TimeControl "180+1"]
[Date "2021.09.15"]
[WhiteClock "0:00:46"]
[BlackClock "0:00:06"]

1. d4 {[%clk 0:03:00]}  Nf6 {[%clk 0:02:58]} 2. Nc3 {[%clk 0:02:59]}  d5 {[%clk 0:02:56]} 3. Bf4 {[%clk 0:02:57]}  e6 {[%clk 0:02:56]} 4. Nb5 {[%clk 0:02:57]}  Na6 {[%clk 0:02:55]} 5. e3 {[%clk 0:02:57]}  c6 {[%clk 0:02:50]} 6. Nc3 {[%clk 0:02:57]}  Bb4 {[%clk 0:02:48]} 7. Bxa6 {[%clk 0:02:56]}  bxa6 {[%clk 0:02:48]} 8. Ne2 {[%clk 0:02:56]}  O-O {[%clk 0:02:47]} 9. O-O {[%clk 0:02:55]}  a5 {[%clk 0:02:43]} 10. a3 {[%clk 0:02:53]}  Bd6 {[%clk 0:02:41]} 11. Re1 {[%clk 0:02:53]}  Re8 {[%clk 0:02:35]} 12. Na4 {[%clk 0:02:50]}  Ne4 {[%clk 0:02:25]} 13. c4 {[%clk 0:02:46]}  Ba6 {[%clk 0:02:17]} 14. cxd5 {[%clk 0:02:46]}  cxd5 {[%clk 0:02:17]} 15. Bxd6 {[%clk 0:02:47]}  Qxd6 {[%clk 0:02:13]} 16. Ng3 {[%clk 0:02:47]}  Nxg3 {[%clk 0:02:03]} 17. hxg3 {[%clk 0:02:48]}  Rab8 {[%clk 0:01:55]} 18. Qd2 {[%clk 0:02:46]}  Bb5 {[%clk 0:01:50]} 19. Nc5 {[%clk 0:02:39]}  a4 {[%clk 0:01:49]} 20. Rac1 {[%clk 0:02:36]}  h5 {[%clk 0:01:41]} 21. Rc3 {[%clk 0:02:28]}  Qe7 {[%clk 0:01:26]} 22. e4 {[%clk 0:02:06]}  dxe4 {[%clk 0:01:25]} 23. Rxe4 {[%clk 0:02:06]}  Bc6 {[%clk 0:01:18]} 24. Re5 {[%clk 0:02:03]}  g6 {[%clk 0:01:08]} 25. Qh6 {[%clk 0:00:55]}  Rxb2 {[%clk 0:00:30]} 26. Nxe6 {[%clk 0:00:45]}  Qf6 {[%clk 0:00:22]} 27. Nf4 {[%clk 0:00:39]}  Rb1+ {[%clk 0:00:08]} 28. Kh2 {[%clk 0:00:39]}  Qg7 {[%clk 0:00:06]} 29. Qxg7+ {[%clk 0:00:39]}  Kxg7 {[%clk 0:00:06]} 30. Rxc6 {[%clk 0:00:39]}  Rxe5 {[%clk 0:00:06]} 31. dxe5 {[%clk 0:00:40]}  Rb3 {[%clk 0:00:07]} 32. Rc7 {[%clk 0:00:40]}  Kf8 {[%clk 0:00:06]} 33. Rxa7 {[%clk 0:00:39]}  Rxa3 {[%clk 0:00:06]} 34. e6 {[%clk 0:00:40]}  fxe6 {[%clk 0:00:06]} 35. Nxg6+ {[%clk 0:00:40]}  Ke8 {[%clk 0:00:06]} 36. Nf4 {[%clk 0:00:41]}  e5 {[%clk 0:00:06]} 37. Nxh5 {[%clk 0:00:42]}  Ra2 {[%clk 0:00:07]} 38. f3 {[%clk 0:00:42]}  a3 {[%clk 0:00:07]} 39. Nf6+ {[%clk 0:00:42]}  Kf8 {[%clk 0:00:07]} 40. Ng4 {[%clk 0:00:43]}  Ra1 {[%clk 0:00:05]} 41. Nxe5 {[%clk 0:00:43]}  a2 {[%clk 0:00:06]} 42. Ng6+ {[%clk 0:00:44]}  Kg8 {[%clk 0:00:06]} 43. Nf4 {[%clk 0:00:45]}  Kf8 {[%clk 0:00:06]} 44. g4 {[%clk 0:00:45]}  Kg8 {[%clk 0:00:06]} 45. Kg3 {[%clk 0:00:46]} 1-0


[Site "https://www.chess.com"]

[Event "Titled Tuesday Blitz September 14 2021"]
[White "Demchenko, Anton"]
[Black "Krivonosov, Oleg"]
[WhiteFideId "4160258"]
[BlackFideId "11600349"]
[WhiteElo "2583"]
[BlackElo "2469"]
[Result "1-0"]
[Round "06"]
[TimeControl "180+1"]
[Date "2021.09.15"]
[WhiteClock "0:00:46"]
[BlackClock "0:00:13"]

1. e4 {[%clk 0:03:00]}  e5 {[%clk 0:02:59]} 2. Nf3 {[%clk 0:03:00]}  Nc6 {[%clk 0:02:59]} 3. Bc4 {[%clk 0:03:00]}  Bc5 {[%clk 0:02:59]} 4. d3 {[%clk 0:03:00]}  Nf6 {[%clk 0:02:56]} 5. Nc3 {[%clk 0:02:58]}  h6 {[%clk 0:02:54]} 6. h3 {[%clk 0:02:55]}  d6 {[%clk 0:02:53]} 7. Na4 {[%clk 0:02:51]}  Bb6 {[%clk 0:02:53]} 8. c3 {[%clk 0:02:49]}  Be6 {[%clk 0:02:50]} 9. Bxe6 {[%clk 0:02:48]}  fxe6 {[%clk 0:02:49]} 10. O-O {[%clk 0:02:49]}  O-O {[%clk 0:02:48]} 11. Re1 {[%clk 0:02:47]}  Qe8 {[%clk 0:02:36]} 12. Nxb6 {[%clk 0:02:41]}  axb6 {[%clk 0:02:35]} 13. a4 {[%clk 0:02:41]}  Nh5 {[%clk 0:02:26]} 14. b4 {[%clk 0:02:34]}  Qg6 {[%clk 0:02:14]} 15. Ra2 {[%clk 0:02:30]}  Nf4 {[%clk 0:02:10]} 16. Bxf4 {[%clk 0:02:30]}  Rxf4 {[%clk 0:02:11]} 17. Nh2 {[%clk 0:02:25]}  Raf8 {[%clk 0:02:07]} 18. Nf1 {[%clk 0:02:19]}  Qf7 {[%clk 0:02:03]} 19. Ree2 {[%clk 0:02:17]}  Ne7 {[%clk 0:01:57]} 20. a5 {[%clk 0:02:10]}  bxa5 {[%clk 0:01:55]} 21. bxa5 {[%clk 0:02:10]}  Ng6 {[%clk 0:01:45]} 22. Qb3 {[%clk 0:02:01]}  Rf6 {[%clk 0:01:37]} 23. g3 {[%clk 0:01:53]}  c6 {[%clk 0:01:25]} 24. Rab2 {[%clk 0:01:38]}  Ra8 {[%clk 0:01:15]} 25. Qb4 {[%clk 0:01:30]}  Qc7 {[%clk 0:01:08]} 26. Qxb7 {[%clk 0:01:27]}  Qxb7 {[%clk 0:01:07]} 27. Rxb7 {[%clk 0:01:28]}  Rxa5 {[%clk 0:01:06]} 28. Rb6 {[%clk 0:01:17]}  Ne7 {[%clk 0:00:59]} 29. Ne3 {[%clk 0:01:17]}  Rf8 {[%clk 0:00:27]} 30. Rb7 {[%clk 0:01:11]}  Kf7 {[%clk 0:00:19]} 31. Nc4 {[%clk 0:01:10]}  Ra1+ {[%clk 0:00:18]} 32. Kg2 {[%clk 0:01:11]}  Rd8 {[%clk 0:00:18]} 33. Rd2 {[%clk 0:00:47]}  Kf6 {[%clk 0:00:17]} 34. d4 {[%clk 0:00:46]}  exd4 {[%clk 0:00:16]} 35. cxd4 {[%clk 0:00:46]}  d5 {[%clk 0:00:14]} 36. e5+ {[%clk 0:00:44]}  Kf7 {[%clk 0:00:13]} 37. Nd6+ {[%clk 0:00:45]}  Kf8 {[%clk 0:00:13]} 38. Rd3 {[%clk 0:00:46]} 1-0


[Site "https://www.chess.com"]

[Event "Titled Tuesday Blitz September 14 2021"]
[White "Dobrov, Vladimir"]
[Black "Pandey Srishti"]
[WhiteFideId "4136594"]
[BlackFideId "35093290"]
[WhiteElo "2614"]
[BlackElo "1816"]
[Result "1-0"]
[Round "06"]
[TimeControl "180+1"]
[Date "2021.09.15"]
[WhiteClock "0:02:42"]
[BlackClock "0:01:10"]

1. d4 {[%clk 0:03:00]}  d5 {[%clk 0:02:30]} 2. c4 {[%clk 0:03:00]}  c6 {[%clk 0:02:28]} 3. Nc3 {[%clk 0:02:59]}  Nf6 {[%clk 0:02:26]} 4. e3 {[%clk 0:02:55]}  e6 {[%clk 0:02:22]} 5. Nf3 {[%clk 0:02:56]}  Nbd7 {[%clk 0:02:19]} 6. Bd3 {[%clk 0:02:54]}  dxc4 {[%clk 0:02:18]} 7. Bxc4 {[%clk 0:02:55]}  b5 {[%clk 0:02:17]} 8. Bd3 {[%clk 0:02:55]}  Bd6 {[%clk 0:02:16]} 9. g4 {[%clk 0:02:54]}  h6 {[%clk 0:02:15]} 10. Rg1 {[%clk 0:02:53]}  e5 {[%clk 0:02:13]} 11. h4 {[%clk 0:02:50]}  Bb7 {[%clk 0:01:20]} 12. g5 {[%clk 0:02:49]}  hxg5 {[%clk 0:01:20]} 13. hxg5 {[%clk 0:02:50]}  Nh5 {[%clk 0:01:18]} 14. Ne4 {[%clk 0:02:45]}  Bb4+ {[%clk 0:01:10]} 15. Bd2 {[%clk 0:02:42]}  Bc3 {[%clk 0:01:10]} 16. Bxc3 {[%clk 0:02:42]} 1-0


[Site "https://www.chess.com"]

[Event "Titled Tuesday Blitz September 14 2021"]
[White "Eljanov, Pavel"]
[Black "De Silva, L M S T"]
[WhiteFideId "14102951"]
[BlackFideId "9953698"]
[WhiteElo "2602"]
[BlackElo "1621"]
[Result "1-0"]
[Round "06"]
[TimeControl "180+1"]
[Date "2021.09.15"]
[WhiteClock "0:00:39"]
[BlackClock "0:00:01"]

1. c4 {[%clk 0:03:00]}  e5 {[%clk 0:02:58]} 2. d3 {[%clk 0:03:01]}  Nf6 {[%clk 0:02:58]} 3. Nf3 {[%clk 0:03:01]}  Nc6 {[%clk 0:02:58]} 4. a3 {[%clk 0:03:01]}  a5 {[%clk 0:02:57]} 5. Nc3 {[%clk 0:02:59]}  d5 {[%clk 0:02:57]} 6. cxd5 {[%clk 0:02:59]}  Nxd5 {[%clk 0:02:58]} 7. g3 {[%clk 0:02:53]}  Nb6 {[%clk 0:02:58]} 8. Bg2 {[%clk 0:02:53]}  Be7 {[%clk 0:02:59]} 9. O-O {[%clk 0:02:53]}  O-O {[%clk 0:02:59]} 10. Be3 {[%clk 0:02:53]}  Be6 {[%clk 0:02:58]} 11. Rc1 {[%clk 0:02:52]}  a4 {[%clk 0:02:59]} 12. Nd2 {[%clk 0:02:46]}  Nd4 {[%clk 0:02:50]} 13. Bxb7 {[%clk 0:02:44]}  Rb8 {[%clk 0:02:35]} 14. Bg2 {[%clk 0:02:43]}  Nb3 {[%clk 0:02:33]} 15. Nxb3 {[%clk 0:02:43]}  Bxb3 {[%clk 0:02:34]} 16. Qd2 {[%clk 0:02:44]}  Qd7 {[%clk 0:02:33]} 17. Ne4 {[%clk 0:02:39]}  Nd5 {[%clk 0:02:29]} 18. Bc5 {[%clk 0:02:39]}  f5 {[%clk 0:02:25]} 19. Bxe7 {[%clk 0:02:39]}  Nxe7 {[%clk 0:02:23]} 20. Nc5 {[%clk 0:02:39]}  Qd6 {[%clk 0:02:22]} 21. Nxb3 {[%clk 0:02:16]}  Rxb3 {[%clk 0:02:21]} 22. Rc3 {[%clk 0:02:14]}  Rfb8 {[%clk 0:02:17]} 23. Rxb3 {[%clk 0:02:15]}  Rxb3 {[%clk 0:02:18]} 24. Rc1 {[%clk 0:02:15]}  Qb6 {[%clk 0:02:16]} 25. Rc2 {[%clk 0:02:09]}  c6 {[%clk 0:02:14]} 26. h4 {[%clk 0:02:08]}  h6 {[%clk 0:02:13]} 27. h5 {[%clk 0:02:07]}  Qd4 {[%clk 0:02:04]} 28. Bf3 {[%clk 0:01:27]}  Nd5 {[%clk 0:01:34]} 29. e3 {[%clk 0:01:22]}  Qxd3 {[%clk 0:01:17]} 30. Qxd3 {[%clk 0:01:22]}  Rxd3 {[%clk 0:01:18]} 31. Rxc6 {[%clk 0:01:23]}  Nf6 {[%clk 0:01:15]} 32. Rc5 {[%clk 0:00:59]}  e4 {[%clk 0:00:57]} 33. Be2 {[%clk 0:01:00]}  Rd2 {[%clk 0:00:54]} 34. Bc4+ {[%clk 0:01:00]}  Kf8 {[%clk 0:00:51]} 35. b3 {[%clk 0:00:59]}  axb3 {[%clk 0:00:38]} 36. Bxb3 {[%clk 0:01:00]}  Nxh5 {[%clk 0:00:37]} 37. Rxf5+ {[%clk 0:00:55]}  Nf6 {[%clk 0:00:37]} 38. a4 {[%clk 0:00:55]}  Rb2 {[%clk 0:00:37]} 39. Rb5 {[%clk 0:00:54]}  Ke7 {[%clk 0:00:31]} 40. a5 {[%clk 0:00:54]}  Ng4 {[%clk 0:00:20]} 41. a6 {[%clk 0:00:53]}  Rb1+ {[%clk 0:00:21]} 42. Kg2 {[%clk 0:00:53]}  Ra1 {[%clk 0:00:19]} 43. Rb4 {[%clk 0:00:52]}  Kd8 {[%clk 0:00:05]} 44. Rxe4 {[%clk 0:00:49]}  Nf6 {[%clk 0:00:05]} 45. Ra4 {[%clk 0:00:49]}  Rxa4 {[%clk 0:00:05]} 46. Bxa4 {[%clk 0:00:49]}  Kc7 {[%clk 0:00:06]} 47. Bb5 {[%clk 0:00:47]}  Kb6 {[%clk 0:00:05]} 48. Bd3 {[%clk 0:00:48]}  g5 {[%clk 0:00:02]} 49. f4 {[%clk 0:00:44]}  g4 {[%clk 0:00:02]} 50. e4 {[%clk 0:00:44]}  h5 {[%clk 0:00:02]} 51. e5 {[%clk 0:00:44]}  Nd5 {[%clk 0:00:02]} 52. f5 {[%clk 0:00:43]}  h4 {[%clk 0:00:01]} 53. f6 {[%clk 0:00:39]} 1-0


[Site "https://www.chess.com"]

[Event "Titled Tuesday Blitz September 14 2021"]
[White "Goltsev, Dmitry"]
[Black "Baskin, Robert"]
[WhiteFideId "24176710"]
[BlackFideId "24662402"]
[WhiteElo "2334"]
[BlackElo "2521"]
[Result "1-0"]
[Round "06"]
[TimeControl "180+1"]
[Date "2021.09.15"]
[WhiteClock "0:01:05"]
[BlackClock "0:01:03"]

1. e4 {[%clk 0:03:00]}  c5 {[%clk 0:02:56]} 2. Nf3 {[%clk 0:03:00]}  d6 {[%clk 0:02:57]} 3. d4 {[%clk 0:03:00]}  cxd4 {[%clk 0:02:58]} 4. Nxd4 {[%clk 0:03:01]}  Nf6 {[%clk 0:02:58]} 5. Nc3 {[%clk 0:03:02]}  a6 {[%clk 0:02:58]} 6. Bg5 {[%clk 0:03:02]}  e6 {[%clk 0:02:58]} 7. Qd2 {[%clk 0:03:01]}  Be7 {[%clk 0:02:53]} 8. a4 {[%clk 0:03:00]}  Qc7 {[%clk 0:02:52]} 9. f3 {[%clk 0:02:58]}  Nbd7 {[%clk 0:02:51]} 10. Be2 {[%clk 0:02:57]}  b6 {[%clk 0:02:50]} 11. O-O {[%clk 0:02:57]}  Bb7 {[%clk 0:02:50]} 12. Rfd1 {[%clk 0:02:56]}  O-O {[%clk 0:02:50]} 13. Rac1 {[%clk 0:02:43]}  Rac8 {[%clk 0:02:50]} 14. Qe1 {[%clk 0:02:38]}  Rfe8 {[%clk 0:02:40]} 15. Bd3 {[%clk 0:02:33]}  Nc5 {[%clk 0:02:38]} 16. Bf1 {[%clk 0:02:30]}  Ncd7 {[%clk 0:02:25]} 17. Nce2 {[%clk 0:02:25]}  Ne5 {[%clk 0:02:12]} 18. b3 {[%clk 0:02:21]}  d5 {[%clk 0:02:12]} 19. f4 {[%clk 0:02:17]}  Ng6 {[%clk 0:02:04]} 20. e5 {[%clk 0:02:17]}  Ne4 {[%clk 0:02:04]} 21. Bxe7 {[%clk 0:02:15]}  Qxe7 {[%clk 0:02:02]} 22. c4 {[%clk 0:02:07]}  dxc4 {[%clk 0:01:59]} 23. Rxc4 {[%clk 0:02:07]}  Rxc4 {[%clk 0:01:59]} 24. bxc4 {[%clk 0:02:08]}  Qa3 {[%clk 0:01:57]} 25. Ng3 {[%clk 0:02:03]}  Nxg3 {[%clk 0:01:45]} 26. hxg3 {[%clk 0:02:01]}  Qxa4 {[%clk 0:01:44]} 27. Rb1 {[%clk 0:02:00]}  Qa3 {[%clk 0:01:35]} 28. Rxb6 {[%clk 0:01:48]}  Qc5 {[%clk 0:01:35]} 29. Rxb7 {[%clk 0:01:48]}  Qxd4+ {[%clk 0:01:35]} 30. Qf2 {[%clk 0:01:45]}  Qc3 {[%clk 0:01:35]} 31. Kh2 {[%clk 0:01:31]}  h5 {[%clk 0:01:34]} 32. Qa7 {[%clk 0:01:24]}  h4 {[%clk 0:01:27]} 33. gxh4 {[%clk 0:01:22]}  Nxf4 {[%clk 0:01:23]} 34. Qf2 {[%clk 0:01:15]}  Qxe5 {[%clk 0:01:03]} 35. g3 {[%clk 0:01:13]}  Nh5 {[%clk 0:01:03]} 36. Qxf7+ {[%clk 0:01:11]}  Kh7 {[%clk 0:01:03]} 37. Bd3+ {[%clk 0:01:05]} 1-0


[Site "https://www.chess.com"]

[Event "Titled Tuesday Blitz September 14 2021"]
[White "Keymer, Vincent"]
[Black "Wagner, Dennis"]
[WhiteFideId "12940690"]
[BlackFideId "24650684"]
[WhiteElo "2524"]
[BlackElo "2355"]
[Result "1-0"]
[Round "06"]
[TimeControl "180+1"]
[Date "2021.09.15"]
[WhiteClock "0:00:07"]
[BlackClock "0:00:02"]

1. d4 {[%clk 0:03:00]}  Nf6 {[%clk 0:02:59]} 2. c4 {[%clk 0:03:01]}  e6 {[%clk 0:02:59]} 3. Nf3 {[%clk 0:02:59]}  d5 {[%clk 0:02:59]} 4. Nc3 {[%clk 0:02:59]}  c5 {[%clk 0:03:00]} 5. cxd5 {[%clk 0:02:58]}  cxd4 {[%clk 0:03:00]} 6. Qxd4 {[%clk 0:02:35]}  exd5 {[%clk 0:02:59]} 7. Bg5 {[%clk 0:02:36]}  Be7 {[%clk 0:02:58]} 8. e3 {[%clk 0:02:34]}  O-O {[%clk 0:02:58]} 9. Bb5 {[%clk 0:02:27]}  a6 {[%clk 0:02:57]} 10. Ba4 {[%clk 0:02:26]}  Nc6 {[%clk 0:02:58]} 11. Bxc6 {[%clk 0:02:26]}  bxc6 {[%clk 0:02:59]} 12. O-O {[%clk 0:02:26]}  h6 {[%clk 0:02:57]} 13. Bh4 {[%clk 0:02:25]}  Be6 {[%clk 0:02:37]} 14. Na4 {[%clk 0:02:17]}  g5 {[%clk 0:02:28]} 15. Bg3 {[%clk 0:02:17]}  Ne4 {[%clk 0:02:27]} 16. Rac1 {[%clk 0:02:10]}  c5 {[%clk 0:02:12]} 17. Nxc5 {[%clk 0:02:05]}  Nxc5 {[%clk 0:02:09]} 18. Rxc5 {[%clk 0:02:06]}  Bxc5 {[%clk 0:02:08]} 19. Qxc5 {[%clk 0:02:07]}  Rc8 {[%clk 0:02:03]} 20. Qa3 {[%clk 0:02:03]}  Qb6 {[%clk 0:01:55]} 21. Nd4 {[%clk 0:01:54]}  Rfe8 {[%clk 0:01:54]} 22. h3 {[%clk 0:01:49]}  a5 {[%clk 0:01:45]} 23. b3 {[%clk 0:01:39]}  Bd7 {[%clk 0:01:29]} 24. Rd1 {[%clk 0:01:28]}  a4 {[%clk 0:01:01]} 25. bxa4 {[%clk 0:01:11]}  Ra8 {[%clk 0:01:00]} 26. Qb3 {[%clk 0:01:11]}  Qa5 {[%clk 0:00:45]} 27. Nb5 {[%clk 0:01:10]}  Bxb5 {[%clk 0:00:34]} 28. axb5 {[%clk 0:00:50]}  Qxa2 {[%clk 0:00:35]} 29. Qxd5 {[%clk 0:00:35]}  Qxd5 {[%clk 0:00:34]} 30. Rxd5 {[%clk 0:00:36]}  Red8 {[%clk 0:00:34]} 31. Rc5 {[%clk 0:00:18]}  Rd1+ {[%clk 0:00:31]} 32. Kh2 {[%clk 0:00:18]}  Rb1 {[%clk 0:00:26]} 33. Bc7 {[%clk 0:00:17]}  Kg7 {[%clk 0:00:21]} 34. b6 {[%clk 0:00:17]}  f6 {[%clk 0:00:14]} 35. Rc2 {[%clk 0:00:15]}  Raa1 {[%clk 0:00:14]} 36. Kg3 {[%clk 0:00:13]}  Kg6 {[%clk 0:00:14]} 37. h4 {[%clk 0:00:10]}  Ra4 {[%clk 0:00:13]} 38. hxg5 {[%clk 0:00:09]}  hxg5 {[%clk 0:00:12]} 39. Rd2 {[%clk 0:00:08]}  Rbb4 {[%clk 0:00:09]} 40. f3 {[%clk 0:00:08]}  Rb1 {[%clk 0:00:08]} 41. e4 {[%clk 0:00:08]}  Rab4 {[%clk 0:00:08]} 42. Rd6 {[%clk 0:00:08]}  R4b2 {[%clk 0:00:04]} 43. e5 {[%clk 0:00:07]}  Rg1 {[%clk 0:00:03]} 44. f4 {[%clk 0:00:04]}  Rgxg2+ {[%clk 0:00:02]} 45. Kf3 {[%clk 0:00:04]}  g4+ {[%clk 0:00:03]} 46. Ke3 {[%clk 0:00:04]}  Rge2+ {[%clk 0:00:03]} 47. Kd3 {[%clk 0:00:03]}  Red2+ {[%clk 0:00:04]} 48. Kc3 {[%clk 0:00:04]}  Rdc2+ {[%clk 0:00:03]} 49. Kd3 {[%clk 0:00:04]}  Rd2+ {[%clk 0:00:03]} 50. Kc4 {[%clk 0:00:04]}  Rbc2+ {[%clk 0:00:04]} 51. Kb5 {[%clk 0:00:04]}  Rxd6 {[%clk 0:00:03]} 52. exd6 {[%clk 0:00:05]}  g3 {[%clk 0:00:03]} 53. d7 {[%clk 0:00:05]}  Rd2 {[%clk 0:00:03]} 54. b7 {[%clk 0:00:06]}  g2 {[%clk 0:00:03]} 55. Bb6 {[%clk 0:00:06]}  Rxd7 {[%clk 0:00:01]} 56. b8=Q {[%clk 0:00:06]}  Rd1 {[%clk 0:00:01]} 57. Qg8+ {[%clk 0:00:05]}  Kf5 {[%clk 0:00:02]} 58. Qxg2 {[%clk 0:00:06]}  Rb1+ {[%clk 0:00:01]} 59. Kc6 {[%clk 0:00:06]}  Rc1+ {[%clk 0:00:02]} 60. Bc5 {[%clk 0:00:07]}  Rc4 {[%clk 0:00:01]} 61. Qd5+ {[%clk 0:00:06]}  Kg4 {[%clk 0:00:01]} 62. Qxc4 {[%clk 0:00:07]}  f5 {[%clk 0:00:02]} 63. Bd6 {[%clk 0:00:07]} 1-0


[Site "https://www.chess.com"]

[Event "Titled Tuesday Blitz September 14 2021"]
[White "Krysa, Leandro"]
[Black "Perez Ponsa, Federico"]
[WhiteFideId "116807"]
[BlackFideId "117927"]
[WhiteElo "2490"]
[BlackElo "2672"]
[Result "1/2-1/2"]
[Round "06"]
[TimeControl "180+1"]
[Date "2021.09.15"]
[WhiteClock "0:00:04"]
[BlackClock "0:00:03"]

1. e4 {[%clk 0:03:00]}  d6 {[%clk 0:02:54]} 2. d4 {[%clk 0:03:00]}  Nf6 {[%clk 0:02:54]} 3. Nc3 {[%clk 0:02:59]}  g6 {[%clk 0:02:55]} 4. Nf3 {[%clk 0:02:59]}  Bg7 {[%clk 0:02:55]} 5. Be2 {[%clk 0:03:00]}  O-O {[%clk 0:02:53]} 6. O-O {[%clk 0:03:00]}  Nc6 {[%clk 0:02:53]} 7. Re1 {[%clk 0:02:56]}  e5 {[%clk 0:02:45]} 8. dxe5 {[%clk 0:02:52]}  dxe5 {[%clk 0:02:30]} 9. Qxd8 {[%clk 0:02:49]}  Rxd8 {[%clk 0:02:30]} 10. Bg5 {[%clk 0:02:49]}  Re8 {[%clk 0:02:30]} 11. Rad1 {[%clk 0:02:40]}  h6 {[%clk 0:02:27]} 12. Bh4 {[%clk 0:02:33]}  Bg4 {[%clk 0:02:10]} 13. Bxf6 {[%clk 0:02:25]}  Bxf6 {[%clk 0:02:10]} 14. Nd5 {[%clk 0:02:25]}  Bd8 {[%clk 0:02:10]} 15. c3 {[%clk 0:02:25]}  Kg7 {[%clk 0:02:07]} 16. Nd2 {[%clk 0:02:25]}  Be6 {[%clk 0:02:03]} 17. Nc4 {[%clk 0:02:20]}  Rc8 {[%clk 0:01:54]} 18. b4 {[%clk 0:02:16]}  Nb8 {[%clk 0:01:41]} 19. Bf3 {[%clk 0:01:57]}  Bf6 {[%clk 0:01:36]} 20. a4 {[%clk 0:01:43]}  Rcd8 {[%clk 0:01:28]} 21. Nce3 {[%clk 0:01:27]}  c6 {[%clk 0:01:20]} 22. Nc7 {[%clk 0:01:20]}  Rh8 {[%clk 0:01:09]} 23. Nxe6+ {[%clk 0:01:20]}  fxe6 {[%clk 0:01:09]} 24. Nc4 {[%clk 0:01:19]}  Nd7 {[%clk 0:01:00]} 25. Na5 {[%clk 0:01:13]}  Nb6 {[%clk 0:00:57]} 26. Nxb7 {[%clk 0:01:02]}  Rxd1 {[%clk 0:00:56]} 27. Rxd1 {[%clk 0:01:03]}  Nxa4 {[%clk 0:00:54]} 28. Rd7+ {[%clk 0:01:00]}  Kf8 {[%clk 0:00:54]} 29. Bg4 {[%clk 0:00:46]}  Nxc3 {[%clk 0:00:46]} 30. Nc5 {[%clk 0:00:35]}  Be7 {[%clk 0:00:44]} 31. Rxa7 {[%clk 0:00:35]}  Bxc5 {[%clk 0:00:40]} 32. bxc5 {[%clk 0:00:29]}  Nxe4 {[%clk 0:00:40]} 33. Bxe6 {[%clk 0:00:26]}  Nxc5 {[%clk 0:00:41]} 34. Bc4 {[%clk 0:00:23]}  h5 {[%clk 0:00:35]} 35. Rc7 {[%clk 0:00:20]}  Ne4 {[%clk 0:00:30]} 36. Rxc6 {[%clk 0:00:14]}  Kg7 {[%clk 0:00:30]} 37. g3 {[%clk 0:00:06]}  Rf8 {[%clk 0:00:27]} 38. Bd3 {[%clk 0:00:06]}  Nf6 {[%clk 0:00:16]} 39. f3 {[%clk 0:00:04]}  Rd8 {[%clk 0:00:16]} 40. Rc7+ {[%clk 0:00:04]}  Kh6 {[%clk 0:00:16]} 41. Rc6 {[%clk 0:00:04]}  Kg7 {[%clk 0:00:06]} 42. Rc7+ {[%clk 0:00:04]}  Rd7 {[%clk 0:00:06]} 43. Rxd7+ {[%clk 0:00:04]}  Nxd7 {[%clk 0:00:07]} 44. Kf2 {[%clk 0:00:04]}  Kf6 {[%clk 0:00:08]} 45. h4 {[%clk 0:00:05]}  Nc5 {[%clk 0:00:07]} 46. Ke3 {[%clk 0:00:05]}  Ne6 {[%clk 0:00:08]} 47. Be4 {[%clk 0:00:04]}  Nd4 {[%clk 0:00:08]} 48. Bd3 {[%clk 0:00:03]}  Nf5+ {[%clk 0:00:08]} 49. Kf2 {[%clk 0:00:03]}  Ke6 {[%clk 0:00:08]} 50. Be4 {[%clk 0:00:03]}  Kf6 {[%clk 0:00:07]} 51. Bd3 {[%clk 0:00:03]}  Nd6 {[%clk 0:00:08]} 52. Bc2 {[%clk 0:00:02]}  Nb7 {[%clk 0:00:08]} 53. Bb1 {[%clk 0:00:03]}  Nc5 {[%clk 0:00:09]} 54. Be4 {[%clk 0:00:04]}  Nb3 {[%clk 0:00:09]} 55. Bc2 {[%clk 0:00:04]}  Nd4 {[%clk 0:00:09]} 56. Be4 {[%clk 0:00:05]}  Ne6 {[%clk 0:00:10]} 57. Bd3 {[%clk 0:00:05]}  Nf8 {[%clk 0:00:10]} 58. Be4 {[%clk 0:00:05]}  Nd7 {[%clk 0:00:10]} 59. Bd3 {[%clk 0:00:05]}  Nc5 {[%clk 0:00:11]} 60. Bc2 {[%clk 0:00:05]}  Na6 {[%clk 0:00:09]} 61. Ke3 {[%clk 0:00:05]}  Nb4 {[%clk 0:00:09]} 62. Be4 {[%clk 0:00:06]}  Na6 {[%clk 0:00:08]} 63. g4 {[%clk 0:00:06]}  hxg4 {[%clk 0:00:07]} 64. fxg4 {[%clk 0:00:06]}  Nc5 {[%clk 0:00:08]} 65. g5+ {[%clk 0:00:05]}  Kg7 {[%clk 0:00:08]} 66. Kf3 {[%clk 0:00:03]}  Kf7 {[%clk 0:00:08]} 67. Bc2 {[%clk 0:00:03]}  Kg7 {[%clk 0:00:08]} 68. Be4 {[%clk 0:00:03]}  Kf7 {[%clk 0:00:07]} 69. Bc2 {[%clk 0:00:03]}  Kg7 {[%clk 0:00:03]} 70. Be4 {[%clk 0:00:04]} 1/2-1/2


[Site "https://www.chess.com"]